fUSD/lending_fUSD_20250401
["ID","MTS","AMOUNT","RATE_DAILY","PERIOD"]
[356954507,1743479516968,-6390.25776906,0.0006,120]
[356954508,1743479517900,-17487.80337357,0.000488,5]
[356954509,1743479517917,-49952.09717445,0.000488,5]
[356954510,1743479517927,-464.42258842,0.000488,5]
[356954511,1743479518164,-336.3627052,0.000488,5]
[356954512,1743479520332,-780.4587598,0.000149,2]
[356954513,1743479521450,-4472.10310609,0.000149,2]
[356954514,1743479521459,-17342.84819264,0.000488,5]
[356954515,1743479521559,-753.08219948,0.000488,5]
[356954516,1743479521571,-1883.05301044,0.000488,5]
[356954517,1743479547513,-250.0,0.00014899,2]
[356954518,1743479608235,337.0,0.0003,30]
[356954519,1743479835573,182.67098975,0.000148,2]
[356954520,1743480011058,-3031.6918,0.000149,2]
[356954524,1743480307264,-300.0,0.00014899,2]
[356954525,1743480307297,-230.0,0.000149,2]
[356954526,1743480352942,-302.0,0.000149,2]
[356954534,1743480632194,-300.0,0.00014899,2]
[356954535,1743480632204,-1413.4103,0.000149,2]
[356954536,1743480632213,-780.06722956,0.000149,2]
[356954561,1743480637894,-646.06205918,0.000149,2]
[356954562,1743480637905,-186.43431126,0.000149,2]
[356954563,1743480637915,-1000.0,0.000149,2]
[356954564,1743480637924,-187.9057,0.000149,2]
[356954565,1743480637933,-342.09867374,0.00016308,2]
[356954566,1743480638003,-77.90132626,0.00016308,2]
[356954567,1743480638013,-250.0,0.00017,2]
[356954568,1743480638022,-396.0,0.0001785,2]
[356954569,1743480638031,-300.0,0.00019,2]
[356954570,1743480638041,-252.33604889,0.00019688,2]
[356954571,1743480638053,-350.0,0.00021,2]
[356954572,1743480638064,-400.0,0.00023,2]
[356954573,1743480638074,-450.0,0.00025,2]
[356954574,1743480638083,-256.5136,0.00025022,2]
[356954575,1743480638094,-1439.078,0.00025122,2]
[356954576,1743480638104,-545.617,0.00025122,2]
[356954577,1743480638113,-4092.0,0.00025122,2]
[356954578,1743480638123,-912.619,0.00025122,2]
[356954579,1743480638132,-161.97,0.00026849,2]
[356954580,1743480638142,-500.0,0.00027,2]
[356954581,1743480638151,-7769.94,0.00027,2]
[356954582,1743480638160,-372.942,0.00027836,17]
[356954583,1743480638170,-3032.85,0.00028122,2]
[356954584,1743480638179,-500.0,0.00028439,2]
[356954585,1743480638189,-687.0,0.00028538,2]
[356954586,1743480638199,-34034.42402837,0.00028539,2]
[356954587,1743480638209,-308.99,0.00028539,2]
[356954588,1743480638219,-168.86,0.00035,2]
[356954589,1743480638228,-265.4415821,0.000396,120]
[356954590,1743480638237,-444.31,0.00039777,2]
[356954591,1743480638247,-806.74,0.00039777,2]
[356954592,1743480638258,-783.26,0.00039777,2]
[356954593,1743480638275,-444.31,0.00039777,2]
[356954594,1743480638296,-444.31,0.00039777,2]
[356954595,1743480638306,-783.26,0.00039777,2]
[356954597,1743480638316,-783.26,0.00039777,2]
[356954598,1743480638326,-444.31,0.00039777,2]
[356954599,1743480638335,-444.31,0.00039777,2]
[356954600,1743480638344,-783.26,0.00039777,2]
[356954601,1743480638354,-444.31,0.00039777,2]
[356954602,1743480638364,-783.26,0.00039777,2]
[356954603,1743480638374,-443.6,0.00039914,2]
[356954604,1743480638384,-150.0,0.00039914,2]
[356954605,1743480638395,-347.09,0.00039914,2]
[356954606,1743480638405,-306.93,0.00039914,2]
[356954607,1743480638414,-783.26,0.00040736,2]
[356954608,1743480638424,-783.26,0.00040736,2]
[356954609,1743480638434,-444.31,0.00040736,2]
[356954610,1743480638445,-444.31,0.00040736,2]
[356954611,1743480638454,-444.31,0.00040736,2]
[356954612,1743480638463,-444.31,0.00040736,2]
[356954613,1743480638473,-416.2,0.00040736,2]
[356954614,1743480638482,-444.31,0.00040932,2]
[356954615,1743480638492,-783.26,0.00040932,2]
[356954616,1743480638502,-4136.58075943,0.00044394,2]
[356954617,1743480638512,-429.27,0.00045311,2]
[356954618,1743480638521,-172.76,0.00045777,2]
[356954619,1743480638532,-23900.0,0.00046,2]
[356954620,1743480638542,-707.85,0.00046399,2]
[356954621,1743480638551,-153.41,0.00046677,2]
[356954622,1743480638560,-1000.0,0.0004684,120]
[356954623,1743480638570,-150.97,0.00046846,2]
[356954624,1743480638579,-3727.81,0.00046911,2]
[356954625,1743480638588,-640.0,0.00046932,120]
[356954626,1743480638598,-250.0,0.00046932,120]
[356954627,1743480638608,-187.91,0.0004712,2]
[356954628,1743480638617,-2000.0,0.00047292,120]
[356954629,1743480638626,-159.93,0.00047392,120]
[356954630,1743480638635,-500.0,0.00047525,2]
[356954631,1743480638645,-159.87090752,0.00047562,120]
[356954632,1743480638655,-200.0,0.00047571,2]
[356954633,1743480638664,-429.27,0.00047575,2]
[356954634,1743480638673,-3979.09,0.00047735,2]
[356954635,1743480638683,-150.0,0.00048,2]
[356954636,1743480638693,-159.87090752,0.00048082,120]
[356954637,1743480638702,-372.943,0.00048377,83]
[356954638,1743480638712,-1522.23,0.0004846,120]
[356954639,1743480638721,-159.87090752,0.00048603,120]
[356954640,1743480638731,-158.1456,0.000487,10]
[356954641,1743480638741,-15243.549,0.00048794,2]
[356954642,1743480638750,-1450.3479,0.00048794,2]
[356954643,1743480638760,-4377.764,0.00048794,2]
[356954644,1743480638770,-1009.5053,0.00048794,120]
[356954645,1743480638780,-719.0959,0.00048794,2]
[356954646,1743480638793,-1993.4708,0.00048794,2]
[356954647,1743480638803,-603.98035096,0.000488,76]
[356954648,1743480638812,-168.3888056,0.00048865,2]
[356954649,1743480638822,-161.97,0.00048877,2]
[356954650,1743480638832,-59358.22033738,0.00048894,2]
[356954651,1743480638841,-169.81187915,0.000489,15]
[356954652,1743480638851,-600.0,0.00049,18]
[356954653,1743480638860,-600.0,0.00049,18]
[356954654,1743480638870,-600.0,0.00049,18]
[356954655,1743480638879,-600.0,0.00049,18]
[356954656,1743480638888,-600.0,0.00049,18]
[356954657,1743480638898,-600.0,0.00049,18]
[356954658,1743480638907,-600.0,0.00049,18]
[356954659,1743480638916,-600.0,0.00049,18]
[356954660,1743480638926,-600.0,0.00049,18]
[356954661,1743480638935,-600.0,0.00049,18]
[356954662,1743480638944,-600.0,0.00049315,38]
[356954663,1743480638953,-1000.0,0.00049599,120]
[356954664,1743480638962,-551.68,0.00049691,120]
[356954665,1743480638973,-662.23,0.0004975,2]
[356954666,1743480638982,-429.27,0.00049839,2]
[356954667,1743480638991,-1048.19,0.00049962,2]
[356954668,1743480639001,-1048.19,0.00049975,2]
[356954669,1743480639011,-167.04,0.00049981,2]
[356954670,1743480639020,-1048.19,0.00049988,2]
[356954671,1743480639031,-1048.19,0.00050001,2]
[356954672,1743480639041,-1048.19,0.00050014,2]
[356954673,1743480639051,-1048.19,0.00050027,2]
[356954674,1743480639061,-1048.19,0.00050041,2]
[356954675,1743480639070,-1048.19,0.00050054,2]
[356954676,1743480639079,-1048.19,0.00050067,2]
[356954677,1743480639088,-1048.19,0.0005008,2]
[356954678,1743480639098,-1048.19,0.00050093,2]
[356954679,1743480639108,-1048.19,0.00050106,2]
[356954680,1743480639117,-1048.19,0.00050119,2]
[356954681,1743480639127,-1048.19,0.00050133,2]
[356954682,1743480639136,-1048.19,0.00050146,2]
[356954683,1743480639145,-1048.19,0.00050159,2]
[356954684,1743480639155,-1048.19,0.00050172,2]
[356954685,1743480639164,-1048.19,0.00050185,2]
[356954686,1743480639174,-1048.19,0.00050198,2]
[356954687,1743480639183,-1048.19,0.00050212,2]
[356954688,1743480639193,-193.28,0.000504,7]
[356954689,1743480639203,-153.41,0.00050625,120]
[356954690,1743480639213,-796.72,0.00050855,2]
[356954691,1743480639222,-169.81187909,0.00050983,15]
[356954692,1743480639231,-208.0,0.0005111,30]
[356954693,1743480639241,-482.5519813,0.00051697,120]
[356954694,1743480639250,-1282.20843496,0.00051697,120]
[356954695,1743480639261,-1107.5485595,0.00051697,120]
[356954696,1743480639271,-4043.31858181,0.00051733,2]
[356954697,1743480639280,-429.27,0.00052102,2]
[356954698,1743480639290,-208.0,0.0005249,30]
[356954699,1743480639299,-640.0,0.00052799,120]
[356954700,1743480639309,-3645.45,0.000528,2]
[356954701,1743480639319,-169.81187909,0.00053067,15]
[356954702,1743480639329,-344.0,0.00053436,30]
[356954703,1743480639338,-1227.83530516,0.00053817,2]
[356954704,1743480639352,-7391.97828645,0.00053817,2]
[356954705,1743480639361,-208.0,0.0005386,30]
[356954706,1743480639371,-344.0,0.00053987,30]
[356954707,1743480639380,-429.27,0.00054366,2]
[356954708,1743480639390,-159.93,0.00054429,120]
[356954709,1743480639399,-3645.45,0.000545,2]
[356954710,1743480639409,-344.0,0.00054538,30]
[356954711,1743480639418,-153.41,0.00054573,120]
[356954712,1743480639429,-500.0,0.00054694,2]
[356954713,1743480639438,-5000.0,0.00054694,120]
[356954714,1743480639448,-563.1807279,0.00054694,26]
[356954715,1743480639458,-4727.30567931,0.00054694,15]
[356954716,1743480639469,-161.39548801,0.00054694,28]
[356954717,1743480639479,-1470.85635982,0.00054774,4]
[356954718,1743480639492,-5201.50287374,0.00054774,4]
[356954719,1743480639502,-23792.88848065,0.00054784,4]
[356954721,1743480641435,-2685.31124165,0.00054784,4]
[356954722,1743480641542,-830.76,0.00054784,4]
[356954723,1743480641575,-150.01688562,0.00054784,4]
[356954788,1743480643928,-150.0,0.00050093,2]
[356954789,1743480643938,-12575.17879348,0.00054784,4]
[356954790,1743480643948,-500.0,0.00054794,120]
[356954791,1743480643957,-309.49649889,0.00054794,120]
[356954792,1743480643968,-500.0,0.00054794,120]
[356954793,1743480643981,-500.0,0.00054794,120]
[356954794,1743480643991,-500.0,0.00054794,120]
[356954795,1743480644000,-500.0,0.00054794,120]
[356954796,1743480644010,-500.0,0.00054794,120]
[356954797,1743480644019,-500.0,0.00054794,120]
[356954798,1743480644028,-520.74313512,0.00054794,120]
[356954799,1743480644038,-500.0,0.00054794,120]
[356954800,1743480644047,-500.0,0.00054794,120]
[356954801,1743480644058,-585.58006452,0.00054794,120]
[356954802,1743480644068,-559.42,0.00054794,2]
[356954803,1743480644077,-500.0,0.00054794,120]
[356954804,1743480644087,-500.0,0.00054794,120]
[356954805,1743480644096,-391.71253468,0.00054794,120]
[356954806,1743480644106,-287.3156409,0.00054794,120]
[356954807,1743480644115,-500.0,0.00054794,120]
[356954808,1743480644124,-500.0,0.00054794,120]
[356954809,1743480644134,-500.0,0.00054794,60]
[356954810,1743480644144,-654.76,0.00054794,120]
[356954811,1743480644154,-500.0,0.00054794,2]
[356954812,1743480644163,-500.0,0.00054794,120]
[356954813,1743480644173,-500.0,0.00054794,120]
[356954814,1743480644183,-1061.11,0.00054794,120]
[356954815,1743480644192,-500.0,0.00054794,120]
[356954816,1743480644201,-500.0,0.00054794,120]
[356954817,1743480644211,-500.0,0.00054794,2]
[356954818,1743480644221,-500.0,0.00054794,120]
[356954819,1743480644230,-500.0,0.00054794,7]
[356954820,1743480644240,-500.0,0.00054794,120]
[356954821,1743480644249,-530.47124783,0.00054794,120]
[356954822,1743480644259,-500.0,0.00054794,120]
[356954823,1743480644269,-500.0,0.00054794,120]
[356954824,1743480644278,-500.0,0.00054794,120]
[356954825,1743480644288,-500.0,0.00054794,120]
[356954826,1743480644297,-500.0,0.00054794,120]
[356954827,1743480644307,-500.0,0.00054794,120]
[356954828,1743480644317,-387.75256791,0.00054794,120]
[356954829,1743480644328,-500.0,0.00054794,120]
[356954830,1743480644337,-500.0,0.00054794,120]
[356954831,1743480644347,-500.0,0.00054794,120]
[356954832,1743480644356,-500.0,0.00054794,120]
[356954833,1743480644366,-500.0,0.00054794,120]
[356954834,1743480644375,-258.91023677,0.00054794,120]
[356954835,1743480644385,-500.0,0.00054794,120]
[356954836,1743480644394,-500.0,0.00054794,120]
[356954837,1743480644404,-500.0,0.00054794,120]
[356954838,1743480644413,-352.09513419,0.00054794,120]
[356954839,1743480644423,-500.0,0.00054794,120]
[356954840,1743480644433,-500.0,0.00054794,120]
[356954841,1743480644443,-500.0,0.00054794,120]
[356954842,1743480644452,-500.0,0.00054794,120]
[356954843,1743480644462,-500.0,0.00054794,120]
[356954844,1743480644471,-500.0,0.00054794,120]
[356954845,1743480644479,-272.04659394,0.00054794,120]
[356954846,1743480644489,-614.98986999,0.00054794,120]
[356954847,1743480644498,-500.0,0.00054794,120]
[356954848,1743480644507,-500.0,0.00054794,120]
[356954849,1743480644516,-448.74854349,0.00054794,120]
[356954850,1743480644529,-51.25145651,0.00054794,120]
[356954851,1743480644538,-500.0,0.00054794,120]
[356954852,1743480644548,-500.0,0.00054794,120]
[356954853,1743480644558,-504.4,0.00054794,120]
[356954854,1743480644567,-180.42482345,0.00054794,120]
[356954855,1743480644577,-500.0,0.00054794,120]
[356954856,1743480644587,-500.0,0.00054794,30]
[356954857,1743480644596,-500.0,0.00054794,120]
[356954858,1743480644606,-500.0,0.00054794,120]
[356954859,1743480644615,-500.0,0.00054794,120]
[356954860,1743480644625,-244.37687647,0.00054794,120]
[356954861,1743480644635,-472.60763138,0.00054794,120]
[356954862,1743480644644,-500.0,0.00054794,120]
[356954863,1743480644655,-500.0,0.00054794,120]
[356954864,1743480644664,-508.10379913,0.00054794,120]
[356954865,1743480644674,-205.14638352,0.00054794,120]
[356954866,1743480644683,-512.36380717,0.00054794,120]
[356954867,1743480644692,-462.74706375,0.00054794,120]
[356954868,1743480644702,-500.0,0.00054794,120]
[356954869,1743480644711,-163.43910382,0.00054794,120]
[356954870,1743480644721,-500.0,0.00054794,120]
[356954871,1743480644730,-500.0,0.00054794,120]
[356954872,1743480644740,-500.0,0.00054794,120]
[356954873,1743480644749,-500.0,0.00054794,120]
[356954874,1743480644759,-500.0,0.00054794,120]
[356954875,1743480644769,-500.0,0.00054794,120]
[356954876,1743480644778,-500.0,0.00054794,120]
[356954877,1743480644787,-500.0,0.00054794,120]
[356954878,1743480644796,-500.0,0.00054794,120]
[356954879,1743480644806,-500.0,0.00054794,120]
[356954880,1743480644816,-689.19,0.00054794,120]
[356954881,1743480644827,-135.87888665,0.00054794,120]
[356954882,1743480645043,-300.0,0.00039777,2]
[356954884,1743480646216,-483.26,0.00039777,2]
[356954885,1743480646226,-444.31,0.00039777,2]
[356954886,1743480646237,-364.12111335,0.00054794,120]
[356954887,1743480646246,-205.75529945,0.00054794,120]
[356954888,1743480646258,-275.006601,0.00054794,120]
[356955004,1743480649126,1067.87224727,0.0003411,30]
[356955012,1743480732735,-300.0,0.00024922,2]
[356955015,1743481524616,2700.0,0.00034111,120]
[356955016,1743481557168,-150.0,0.0001489,2]
[356955017,1743481576286,-154.06681593,0.0001489,2]
[356955024,1743481747206,-549.56029695,0.0001489,2]
[356955025,1743481747233,-150.0,0.00014999,2]
[356955026,1743481747261,-24300.43970305,0.00015,2]
[356955029,1743481748348,-25000.0,0.00015,2]
[356955030,1743481749177,-25000.0,0.00015,2]
[356955031,1743481750097,-25000.0,0.00015,2]
[356955032,1743481770042,164.86,0.00013699,2]
[356955033,1743481770363,164.86,0.00013699,2]
[356955034,1743481770705,164.87042011,0.00013699,2]
[356955035,1743481776003,-18268.07152676,0.00015,2]
[356955036,1743481776029,-553.62523188,0.00015,2]
[356955037,1743481776055,-157.81936981,0.00015,2]
[356955038,1743481776080,-6020.48387155,0.0002,4]
[356955039,1743481777004,-177.00289853,0.000149,2]
[356955040,1743481777031,-18174.31027065,0.0002,4]
[356955041,1743481777057,-152.50106859,0.00022,3]
[356955042,1743481777083,-1973.14617646,0.00024,2]
[356955043,1743481777108,-4523.03958577,0.00024,5]
[356955054,1743481832213,-529.86379788,0.00024,5]
[356955055,1743481832223,-174.07745544,0.000249,2]
[356955056,1743481832233,-155.28,0.00026834,2]
[356955057,1743481832242,-153.37,0.00026849,2]
[356955058,1743481832251,-1109.83006326,0.00033429,5]
[356955059,1743481832261,-497.27579759,0.00034111,2]
[356955060,1743481832271,-153.37,0.00034192,2]
[356955061,1743481832281,-174.07745544,0.00037047,2]
[356955062,1743481832291,-153.37,0.00041534,2]
[356955063,1743481832301,-370.578436,0.00048423,2]
[356955064,1743481832312,-398.17,0.00048667,2]
[356955065,1743481832326,-153.37,0.00048877,2]
[356955066,1743481832337,-169.16,0.0004898,120]
[356955067,1743481832346,-600.0,0.0004908,18]
[356955068,1743481832356,-600.0,0.0004908,18]
[356955069,1743481832366,-600.0,0.0004908,18]
[356955070,1743481832376,-600.0,0.0004908,18]
[356955072,1743481832386,-600.0,0.0004908,18]
[356955074,1743481832395,-600.0,0.0004908,18]
[356955076,1743481832406,-727.78798466,0.0004908,18]
[356955078,1743481832416,-500.0,0.0004908,120]
[356955080,1743481832426,-500.0,0.0004908,120]
[356955082,1743481832436,-500.0,0.0004908,120]
[356955084,1743481832445,-500.0,0.0004908,120]
[356955086,1743481832454,-583.0,0.0004908,120]
[356955088,1743481832464,-174.07745544,0.00049193,15]
[356955090,1743481832473,-2695.0,0.00049498,2]
[356955092,1743481832482,-503.0,0.00049699,2]
[356955093,1743481832492,-153.41,0.00050525,120]
[356955094,1743481832502,-398.17,0.00050931,2]
[356955095,1743481832512,-639.01166137,0.00050955,2]
[356955096,1743481832522,-250.0,0.00051026,120]
[356955097,1743481832531,-159.93,0.00051934,120]
[356955098,1743481832541,-1815.3021,0.0005204,2]
[356955099,1743481832551,-3815.0117,0.0005204,2]
[356955100,1743481832560,-152.5044904,0.0005204,120]
[356955101,1743481832571,-150.0,0.00052139,120]
[356955102,1743481832581,-1000.0,0.0005214,60]
[356955103,1743481832593,-1000.0,0.0005214,60]
[356955105,1743481832603,-1000.0,0.0005214,60]
[356955107,1743481832612,-1000.0,0.0005214,60]
[356955109,1743481832621,-1000.0,0.0005214,60]
[356955110,1743481832630,-1000.0,0.0005214,60]
[356955111,1743481832639,-1000.0,0.0005214,60]
[356955112,1743481832650,-1000.0,0.0005214,60]
[356955113,1743481832660,-1000.0,0.0005214,60]
[356955114,1743481832670,-1000.0,0.0005214,60]
[356955115,1743481832681,-895.27871679,0.0005214,60]
[356955124,1743481838262,-104.72128321,0.0005214,60]
[356955125,1743481838272,-1000.0,0.0005214,60]
[356955126,1743481838282,-235.37732808,0.0005214,60]
[356955130,1743481838347,-764.62267192,0.0005214,60]
[356955132,1743481838357,-1000.0,0.0005214,60]
[356955134,1743481838367,-1000.0,0.0005214,60]
[356955136,1743481838376,-1000.0,0.0005214,60]
[356955138,1743481838386,-1000.0,0.0005214,60]
[356955140,1743481838395,-1000.0,0.0005214,60]
[356955142,1743481838407,-1000.0,0.0005214,60]
[356955144,1743481838417,-1000.0,0.0005214,60]
[356955146,1743481838426,-1000.0,0.0005214,60]
[356955148,1743481838435,-1000.0,0.0005214,60]
[356955150,1743481838444,-1000.0,0.0005214,60]
[356955152,1743481838453,-1000.0,0.0005214,60]
[356955154,1743481838463,-1000.0,0.0005214,60]
[356955156,1743481838473,-1000.0,0.0005214,60]
[356955158,1743481838483,-1000.0,0.0005214,60]
[356955160,1743481838493,-1000.0,0.0005214,60]
[356955162,1743481838502,-1000.0,0.0005214,60]
[356955164,1743481838513,-1000.0,0.0005214,60]
[356955166,1743481838522,-1000.0,0.0005214,60]
[356955168,1743481838532,-665.47,0.0005214,60]
[356955170,1743481838542,-150.0,0.0005214,60]
[356955172,1743481838551,-6624.62970771,0.00052353,2]
[356955174,1743481838561,-23900.0,0.0005244,2]
[356955176,1743481838570,-152.50449026,0.00052564,120]
[356955178,1743481838580,-1000.0,0.00052649,120]
[356955180,1743481838590,-790.77,0.000528,2]
[356955182,1743481838600,-2205.5926,0.000529,2]
[356955184,1743481838609,-161.39548801,0.000529,28]
[356955186,1743481838619,-563.1807279,0.00052988,25]
[356955188,1743481838629,-40549.3989178,0.0005299,4]
[356955190,1743481838639,-337.1588648,0.0005299,61]
[356955191,1743481838649,-223.765,0.0005299,98]
[356955192,1743481838659,-39924.26713139,0.0005299,4]
[356955197,1743481840526,-622.59194867,0.0005299,4]
[356955312,1743481843958,-930.66854198,0.0005299,4]
[356955321,1743481845192,-1.00650196,0.0005299,4]
[356955348,1743481868207,195.230085,7.945e-05,2]
[356955349,1743482786977,428.5,0.00015,7]
[356955354,1743483032348,-250.0,0.00017,2]
[356955355,1743483032358,-253.7884664,0.00026749,2]
[356955356,1743483032367,-107.2615336,0.00026849,2]
[356955357,1743483032459,-44.5184664,0.00026849,2]
[356955358,1743483032468,-213.44815255,0.00030137,5]
[356955359,1743483032478,-253.78846639,0.00035927,2]
[356955360,1743483032487,-195.27574191,0.00039689,2]
[356955361,1743483032499,-1247.15688436,0.00039689,2]
[356955362,1743483032620,-2507.43057068,0.00039689,2]
[356955363,1743483032632,-8168.5008118,0.00039689,2]
[356955371,1743483038170,-2386.12297696,0.00039689,2]
[356955372,1743483038180,-1521.05509819,0.00045105,2]
[356955373,1743483038190,-253.78846639,0.00045105,2]
[356955374,1743483038199,-151.78,0.00045205,2]
[356955375,1743483038209,-358.35,0.00049784,2]
[356955376,1743483038218,-153.41,0.00051462,120]
[356955377,1743483038227,-250.0,0.00051738,120]
[356955378,1743483038236,-384.0,0.00051844,120]
[356955379,1743483038246,-358.35,0.00052048,2]
[356955380,1743483038255,-159.93,0.00052167,120]
[356955381,1743483038264,-170.98,0.0005226,2]
[356955382,1743483038275,-1000.0,0.00052296,120]
[356955383,1743483038284,-23900.0,0.00052308,2]
[356955384,1743483038293,-168.18,0.00052459,2]
[356955385,1743483038307,-418.56062317,0.0005247,2]
[356955386,1743483038317,-169.17,0.0005247,120]
[356955387,1743483038327,-158.15,0.000528,2]
[356955388,1743483038337,-500.0,0.0005289,2]
[356955389,1743483038347,-1318.3171,0.000529,2]
[356955390,1743483038357,-500.0,0.000529,2]
[356955391,1743483038367,-2205.5926,0.000529,2]
[356955392,1743483038377,-223.765,0.000529,97]
[356955393,1743483038386,-161.39548801,0.000529,28]
[356955394,1743483038396,-3731.15554442,0.0005295,15]
[356955395,1743483038409,-996.15013489,0.0005295,15]
[356955396,1743483038418,-563.1807279,0.0005295,25]
[356955397,1743483038428,-189.43,0.00052989,120]
[356955398,1743483038438,-1360.27407054,0.0005299,4]
[356955399,1743483038449,-2683.6833661,0.0005299,4]
[356955400,1743483038464,-39603.54268306,0.0005299,4]
[356955401,1743483038669,-96409.21291673,0.00052999,61]
[356955402,1743483038682,-9960.71394464,0.00052999,61]
[356955403,1743483038697,-10147.52716113,0.00052999,61]
[356955405,1743483042359,-150.0,0.00052048,2]
[356955406,1743483042371,-1094.85362254,0.00052999,61]
[356955407,1743483042386,-4095.28444807,0.00052999,61]
[356955408,1743483042419,-447.06094897,0.00052999,61]
[356955409,1743483042433,-566.12214868,0.00052999,61]
[356955410,1743483042451,-1387.40725909,0.00052999,61]
[356955411,1743483042464,-999.5000125,0.00052999,61]
[356955412,1743483042476,-2082.375,0.00052999,61]
[356955428,1743483043356,-150.0,0.0005247,2]
[356955429,1743483043367,-2533.60349047,0.00052999,61]
[356955436,1743483044324,-1713.05398424,0.00052999,61]
[356955437,1743483044341,-647.33152689,0.00052999,61]
[356955438,1743483044359,-6679.11440257,0.00052999,61]
[356955441,1743483046333,-17178.60099415,0.00052999,61]
[356955458,1743483723233,1468.0,0.00034116,30]
[356955463,1743483980460,48328.21,0.000299,30]
[356955469,1743484231448,-155.52,0.00026849,2]
[356955470,1743484231459,-179.012,0.00027972,18]
[356955471,1743484231471,-2344.33551533,0.00034,30]
[356955472,1743484231484,-871.53695397,0.00034,30]
[356955473,1743484231499,-2237.5817208,0.00034,30]
[356955474,1743484231514,-7780.68458694,0.00034,30]
[356955475,1743484231527,-3285.93024673,0.00034,30]
[356955476,1743484231616,-379.05964058,0.00034,30]
[356955477,1743484231630,-223517.94395477,0.00034,30]
[356955478,1743484231640,-155.52,0.00034192,2]
[356955479,1743484231650,-155.52,0.00041534,2]
[356955480,1743484231661,-179.013,0.00048479,83]
[356955481,1743484231671,-155.52,0.00048877,2]
[356955482,1743484231682,-322.51,0.0004969,2]
[356955483,1743484231694,-152.50449026,0.000499,120]
[356955484,1743484231708,-152.50449026,0.000499,120]
[356955485,1743484231720,-152.50449026,0.00050593,120]
[356955486,1743484231730,-152.50449026,0.00051364,120]
[356955487,1743484231740,-153.41,0.00051428,120]
[356955488,1743484231750,-439.66,0.0005168,2]
[356955489,1743484231760,-250.0,0.00051825,120]
[356955490,1743484231770,-196.69071804,0.00051954,2]
[356955491,1743484231784,-125.81928196,0.00051954,2]
[356955492,1743484231794,-152.50449026,0.00052136,120]
[356955493,1743484231806,-3528.28726808,0.00052147,2]
[356955494,1743484231825,-1408.38516504,0.00052147,2]
[356955501,1743484237635,-150.0,0.00052147,2]
[356955502,1743484237647,-1094.15397814,0.00052147,2]
[356955503,1743484237657,-305.35,0.00052241,2]
[356955504,1743484237668,-702.52801961,0.000523,120]
[356955531,1743484239641,-150.0,0.000523,120]
[356955532,1743484239653,-297.47198039,0.000523,120]
[356955533,1743484239664,-159.93,0.00052314,120]
[356955534,1743484239675,-170.98,0.00052525,2]
[356955535,1743484239686,-444.31,0.00052541,30]
[356955536,1743484239699,-633.24,0.00052541,30]
[356955537,1743484239710,-1871.94551782,0.0005269,2]
[356955538,1743484239862,-415.735,0.0005269,2]
[356955539,1743484240026,-404.83558218,0.0005269,2]
[356955540,1743484240038,-196.29603209,0.0005278,4]
[356955643,1743484242839,-2223.27433977,0.0005278,4]
[356955644,1743484242850,-268.78245012,0.0005278,4]
[356955646,1743484245482,-1905.6901888,0.0005278,4]
[356955647,1743484245492,-143.90979072,0.0005278,4]
[356955648,1743484245504,-6.09020928,0.0005278,4]
[356955649,1743484245514,-4594.04301078,0.0005278,4]
[356955650,1743484245523,-337.1588648,0.00052789,61]
[356955651,1743484245534,-1383.8794218,0.00052789,61]